[Event "Krakow Championship-A 2022"]
[Site "Krakow"]
[Date "2022.06.27"]
[Round "4.11"]
[White "Klimkowski, Jan"]
[Black "Kyc, Jerzy"]
[Result "1-0"]
[ECO "B90"]
[WhiteElo "2401"]
[BlackElo "2213"]
[Annotator "TA"]
[PlyCount "89"]
[EventDate "2022.06.25"]
[EventType "swiss"]
[EventCountry "POL"]
[SourceTitle "playchess.com"]
[Source "ChessBase"]
[SourceQuality "1"]
[TimeControl "40/5400+30:1800+30"]

{[%evp 10,89,21,18,39,39,62,72,67,47,62,25,22,-18,-40,-40,65,60,45,38,54,66,70,68,79,73,64,58,86,49,63,69,75,74,91,89,97,93,83,75,74,42,67,37,122,104,102,115,129,129,216,203,202,208,237,241,241,251,244,237,232,233,225,225,229,223,263,267,279,272,276,255,399,408,804,743,956,912,925,878,907,785]} 1. e4 {[%emt 0:00:03]} c5 {[%emt 0:00:04]} 2. Nf3 {[%emt 0:00:08]} d6 {[%emt 0:00:03]} 3. d4 {[%emt 0:00:07]} cxd4 {[%emt 0:00:03]} 4. Nxd4 {[%emt 0:00:05]} Nf6 {[%emt 0:00:04]} 5. Nc3 {[%emt 0:00:06]} a6 {[%emt 0:00:03]} 6. f3 {[%emt 0:00:08]} h5 {[%emt 0:06:11] B90: Sicilian Najdorf: Unusual White 6th moves, 6 Be3 Ng4 and 6 Be3 e5.} 7. Bg5 {[%emt 0:05:41]} Nbd7 {[%emt 0:00:28]} 8. Qd2 {[%emt 0:03:27]} e6 {[%emt 0:08:14] White is better.} 9. O-O-O {[%emt 0:01:30]} Qc7 {[%emt 0:01:39] [#] Prevents Bc4.} 10. h4 $146 {[%emt 0:05:21]} ({Predecessor:} 10. Kb1 Be7 11. h4 Ne5 12. f4 Neg4 13. g3 b5 14. a3 Rb8 15. Bg2 b4 16. axb4 Rxb4 {0-1 (97) Farago,S (2237)-Ilincic,Z (2398) Budapest 2019}) 10... b5 {[%emt 0:01:14]} 11. Bxb5 {[%emt 0:09:58]} axb5 {[%emt 0:00:06]} 12. Ndxb5 {[%emt 0:00:04]} Qc6 {[%emt 0:04:17]} ({Black should play} 12... Qa5 $1 $15) 13. Nxd6+ $14 {[%emt 0:00:13]} Bxd6 {[%emt 0:00:03]} 14. Qxd6 {[%emt 0:00:07]} Qxd6 {[%emt 0:00:08]} 15. Rxd6 {[%emt 0:00:06]} O-O {[%emt 0:00:21]} 16. Rhd1 {[%emt 0:05:18][%mdl 1024] White has compensation.} Ne5 {[%emt 0:01:09]} 17. Bf4 {[%emt 0:10:18]} Ng6 {[%emt 0:02:42][%csl LRf4,LRh4]} 18. Bg3 {[%emt 0:00:06]} e5 {[%emt 0:02:31]} 19. a4 {[%emt 0:03:11]} Be6 {[%emt 0:01:22]} 20. b3 {[%emt 0:06:40]} Rfc8 {[%emt 0:02:00]} 21. Kb2 {[%emt 0:00:08]} Kf8 {[%emt 0:00:48]} 22. Nb5 {[%emt 0:02:00]} Ne8 {[%emt 0:12:08]} 23. Rb6 {[%emt 0:03:27][%cal Bd6b6,Bb6b5,Bb5e5][%mdl 32]} Nc7 {[%emt 0:04:33]} 24. Bf2 {[%emt 0:04:17] 0x0.002229f140aadp-1022s more active pieces.} Nxb5 {[%emt 0:09:39]} 25. Rxb5 {[%emt 0:02:07]} Rc6 {[%emt 0:05:56]} 26. a5 {[%emt 0:03:45]} f5 {[%emt 0:05:37] White leaves nothing to chance now.} (26... Ke8 $14) 27. c4 {[%emt 0:02:17]} fxe4 {[%emt 0:00:25]} 28. fxe4 {[%emt 0:00:06]} Rca6 {[%emt 0:05:09]} 29. Bb6 {[%emt 0:04:32]} Nxh4 {[%emt 0:03:27]} (29... Rc8 $16 30. g3 Bg4) 30. Rxe5 $18 {[%emt 0:00:30]} Bg4 {[%emt 0:00:21]} 31. Rd2 {[%emt 0:01:42]} Ng6 {[%emt 0:03:04]} 32. Rg5 {[%emt 0:01:08]} Ne7 {[%emt 0:00:21]} 33. b4 {[%emt 0:02:25]} Nc8 {[%emt 0:03:53]} 34. Rf2+ {[%emt 0:04:21]} Kg8 {[%emt 0:01:01]} 35. Bd4 {[%emt 0:00:18]} g6 {[%emt 0:00:45]} 36. Kc3 {[%emt 0:02:17] And now Re5 would win.} Re6 {[%emt 0:01:02]} 37. Bc5 {[%emt 0:03:46]} Nd6 {[%emt 0:01:31]} 38. Bxd6 {[%emt 0:00:15]} Rxd6 {[%emt 0:00:01]} 39. Rd5 {[%emt 0:00:55]} Re6 {[%emt 0:00:17]} 40. Kd4 {[%emt 0:01:26]} Bd1 {[%emt 0:02:23]} (40... Re7 $142 41. Rf6 Rae8) 41. e5 {[%emt 0:37:04]} Raa6 {[%emt 0:34:49]} (41... Bg4 $142 42. Rd6 g5) 42. Ra2 {[%emt 0:01:13] White is clearly winning.} h4 {[%emt 0:05:38]} 43. b5 {[%emt 0:00:09]} Ra8 {[%emt 0:00:05]} 44. b6 {[%emt 0:01:39]} Rf8 {[%emt 0:02:15]} 45. Rd6 {[%emt 0:02:19] Weighted Error Value: White=0.07 (flawless) /Black=0.23 (precise)} 1-0

[Event "Krakow Championship-A 2022"]
[Site "Krakow"]
[Date "2022.06.27"]
[Round "4.12"]
[White "Gahan M G"]
[Black "Marszalek, Maciej"]
[Result "0-1"]
[ECO "C00"]
[WhiteElo "2248"]
[BlackElo "2290"]
[Annotator "TA"]
[PlyCount "122"]
[EventDate "2022.06.25"]
[EventType "swiss"]
[EventCountry "POL"]
[SourceTitle "playchess.com"]
[Source "ChessBase"]
[SourceQuality "1"]
[TimeControl "40/5400+30:1800+30"]

{[%evp 9,122,14,42,24,27,16,11,23,45,3,12,0,9,-9,31,6,32,-17,-12,-14,6,5,1,0,34,30,33,0,0,-19,0,0,0,0,0,0,0,-127,-100,-169,-179,-225,-216,-243,-222,-232,-231,-340,-321,-464,-441,-446,-330,-301,-293,-514,-542,-556,-544,-679,-679,-1008,-754,-648,0,-1340,-745,-1041,-1016,-1121,-1084,-1068,-1052,-1001,-811,-967,-922,-909,-649,-669,-670,-662,-644,-775,-708,-657,-574,-774,-606,-575,-414,-396,-342,-577,-572,-4144,-4144,-4144,-4144,-4144,-4144,-12839,-4137,-29976,-29977,-29977,-29977,-29984,-29979,-29978,-29979,-29979,-29980,-29980,-29981]} 1. e4 {[%emt 0:00:34]} e6 {[%emt 0:09:09]} 2. d3 {[%emt 0:03:06]} c5 {[%emt 0:01:35]} 3. Nf3 {[%emt 0:00:27]} Nc6 {[%emt 0:00:06]} 4. g3 {[%emt 0:00:05]} a6 {[%emt 0:00:58]} 5. Bg2 {[%emt 0:00:07]} b5 {[%emt 0:00:08]} 6. c3 {[%emt 0:00:12]} Bb7 {[%emt 0:00:33]} 7. O-O {[%emt 0:00:48]} Nf6 {[%emt 0:03:36]} 8. Re1 {[%emt 0:00:42] The position is equal.} d5 {[%emt 0:02:47]} 9. Nbd2 {[%emt 0:03:08]} Be7 {[%emt 0:00:53]} 10. Qe2 {[%emt 0:00:27]} Qc7 {[%emt 0:04:00]} 11. Nf1 {[%emt 0:03:49]} b4 {[%emt 0:17:46]} 12. h4 {[%emt 0:06:32]} a5 {[%emt 0:03:15]} 13. Bg5 {[%emt 0:09:47]} (13. exd5 $14 Nxd5 14. Ne3) 13... dxe4 $11 {[%emt 0:10:47]} 14. dxe4 {[%emt 0:00:11]} h6 {[%emt 0:00:18]} (14... Ba6 $5 {[%cal Ra6e2]} 15. Qc2 Rd8 $11) 15. Bf4 {[%emt 0:03:55]} Qc8 {[%emt 0:07:29]} (15... e5 $2 {[#]} 16. Nxe5 $1 Nxe5 17. Bxe5 Qxe5 18. Qb5+ Nd7 19. Qxb7 $16) 16. Rad1 {[%emt 0:11:15]} bxc3 {[%emt 0:04:27]} 17. bxc3 {[%emt 0:02:14]} O-O {[%emt 0:00:11]} 18. N1h2 {[%emt 0:00:57]} Rd8 {[%emt 0:03:37]} 19. Qe3 {[%emt 0:00:53]} Rxd1 {[%emt 0:00:54]} 20. Rxd1 {[%emt 0:00:03]} Qf8 {[%emt 0:00:28]} 21. g4 {[%emt 0:05:41]} Rd8 {[%emt 0:03:22][%cal Ba8d8,Bd8d1,Bd1a1][%mdl 32]} 22. Rb1 {[%emt 0:00:06]} Ba6 {[%emt 0:00:42]} 23. Rb6 {[%emt 0:07:06]} (23. g5 $11 hxg5 24. hxg5) 23... Rd1+ $17 {[%emt 0:00:09] White is on the road to losing.} 24. Ne1 {[%emt 0:00:24]} (24. Bf1 $17 {might work better.} Qc8 25. g5 hxg5 26. hxg5) 24... Qc8 $19 {[%emt 0:01:14]} 25. Bf3 {[%emt 0:00:38]} (25. Bf1 {was worth a try.} Bxf1 26. Nxf1) 25... Ra1 {[%emt 0:01:52]} 26. e5 {[%emt 0:06:36]} Nd5 {[%emt 0:00:03]} 27. Bxd5 {[%emt 0:00:06]} exd5 {[%emt 0:00:04]} 28. Kg2 {[%emt 0:00:59]} (28. e6 {was forced.} fxe6 29. Nhf3) 28... d4 {[%emt 0:07:26]} ({Not} 28... Rxa2 $2 29. Nef3) ({Inferior is} 28... Bxh4 29. Qxc5 Bb7 30. Nef3 $17) 29. Qe4 {[%emt 0:05:10]} (29. cxd4 $142 Bd8 30. Rb2) 29... Bb7 {[%emt 0:00:07] And now ...Nd8 would win.} 30. cxd4 {[%emt 0:00:48][%cal Oe5e6]} cxd4 {[%emt 0:00:47]} 31. Nef3 {[%emt 0:00:47][%cal Oe5e6]} Nd8 {[%emt 0:02:01] The board is on fire.} ({And not} 31... Rxa2 32. Qb1 Nb4 33. Rxb4 Rxf2+ 34. Kxf2 $11) 32. Qe2 {[%emt 0:04:40]} (32. Qxd4 Rxa2 33. Be3) 32... Ne6 {[%emt 0:01:50]} 33. Bg3 {[%emt 0:00:46]} Bc5 {[%emt 0:05:26]} 34. Rb2 {[%emt 0:01:59]} Bb4 {[%emt 0:01:11] A strong pair of Bishops.} 35. Kh3 {[%emt 0:01:51]} Ba6 {[%emt 0:01:11]} 36. Qe4 {[%emt 0:02:01]} Bb7 $2 {[%emt 0:01:20]} ({Black should play} 36... Qc1 $19 {( -> ...Bf1+)} 37. Qa8+ Bc8 38. Rxb4 axb4) 37. Qf5 $2 {[%emt 0:03:30][%mdl 8192]} (37. Qe2 $11 Qc1 38. Ne1 Qxe1 39. Qxe1 Rxe1 40. f3) 37... Qd7 {[%emt 0:00:36] ...d3 is the strong threat.} 38. h5 {[%emt 0:03:50]} Qd5 {[%emt 0:00:50]} 39. Bf4 {[%emt 0:03:34]} Rxa2 {[%emt 0:02:10]} 40. Rxa2 {[%emt 0:02:24]} Qxa2 {[%emt 0:00:01]} 41. Kg3 {[%emt 0:32:29]} Qd5 {[%emt 0:31:19] aiming for ...d3.} 42. g5 {[%emt 0:01:37]} hxg5 {[%emt 0:03:06]} 43. Bxg5 {[%emt 0:00:05]} Qe4 {[%emt 0:00:37]} 44. Qxe4 {[%emt 0:00:04]} Bxe4 {[%emt 0:00:01]} 45. Bd2 {[%emt 0:00:14]} Bc3 {[%emt 0:01:40]} 46. h6 {[%emt 0:01:12]} a4 {[%emt 0:00:00]} 47. Bc1 {[%emt 0:00:00]} d3 {[%emt 0:00:00] Threatens to win with ...Bxf3.} 48. hxg7 {[%emt 0:00:00]} Kxg7 {[%emt 0:00:00] White must now prevent ...Bxf3.} 49. Nf1 {[%emt 0:00:00]} Bg6 {[%emt 0:00:00]} 50. Ne3 {[%emt 0:00:00]} Nc5 {[%emt 0:00:00]} 51. Nd5 $2 {[%emt 0:00:00]} (51. Ba3 Nb3 52. Kf4) 51... Ne4+ {[%emt 0:00:00]} 52. Kf4 {[%emt 0:00:00]} d2 {[%emt 0:00:00]} 53. Nxd2 {[%emt 0:00:00]} Bxd2+ {[%emt 0:00:00]} 54. Bxd2 {[%emt 0:00:00]} Nxd2 {[%emt 0:00:00]} 55. Ke3 {[%emt 0:00:00]} Nb3 {[%emt 0:00:00]} 56. f4 {[%emt 0:00:00]} a3 {[%emt 0:00:00] Black mates.} 57. Nb4 {[%emt 0:00:00]} Bb1 {[%emt 0:00:00]} 58. Kf3 {[%emt 0:00:00]} a2 {[%emt 0:00:00]} 59. Nxa2 {[%emt 0:00:00]} Bxa2 {[%emt 0:00:00]} 60. f5 {[%emt 0:00:00]} Nd4+ {[%emt 0:00:00]} 61. Ke4 {[%emt 0:00:00] [#]} Nxf5 $1 {[%emt 0:00:00] Weighted Error Value: White=0.94/Black=0.48} 0-1

[Event "Krakow Championship-A 2022"]
[Site "Krakow"]
[Date "2022.06.27"]
[Round "4.13"]
[White "Stevik, Patrik jun."]
[Black "Paszewski, Mateusz"]
[Result "1/2-1/2"]
[ECO "D02"]
[WhiteElo "2188"]
[BlackElo "2286"]
[Annotator "TA"]
[PlyCount "63"]
[EventDate "2022.06.25"]
[EventType "swiss"]
[EventCountry "POL"]
[SourceTitle "playchess.com"]
[Source "ChessBase"]
[SourceQuality "1"]
[TimeControl "40/5400+30:1800+30"]

{[%evp 9,63,7,0,-17,-16,-28,-28,-27,-24,-25,-25,-11,-12,-14,2,-61,-33,-78,-64,-82,-75,-77,-85,-76,-66,-74,-68,-66,-69,-79,-69,-77,-64,-73,-67,-77,-56,-53,-52,-70,-58,-152,-147,-150,-142,-138,-127,-182,-88,-150,0,0,0,-35,-30,-28]} 1. Nf3 {[%emt 0:03:32]} d5 {[%emt 0:01:56]} 2. d4 {[%emt 0:00:30]} Nf6 {[%emt 0:00:09]} 3. c4 {[%emt 0:00:17]} c6 {[%emt 0:00:04]} 4. g3 {[%emt 0:01:12]} Bf5 {[%emt 0:02:58]} 5. Qb3 {[%emt 0:01:06]} Qb6 {[%emt 0:02:51]} 6. Qxb6 {[%emt 0:06:03] D11: Slav Defence: 3 Nf3 sidelines and 3...Nf6 4 e3 Bg4.} axb6 {[%emt 0:00:25]} 7. cxd5 {[%emt 0:00:35]} Nxd5 {[%emt 0:06:43]} 8. Bd2 {[%emt 0:03:21] [#] Against Nb4} Nd7 $146 {[%emt 0:06:12]} ({Predecessor:} 8... e6 9. Bg2 Bxb1 10. Rxb1 Rxa2 11. O-O Be7 12. Ra1 Ra6 13. Rfc1 O-O 14. e4 Nf6 {0-1 (52) Fabrega,E (2146)-Munoz,F (2259) Buenos Aires 2015}) 9. Bg2 {[%emt 0:04:47]} e6 {[%emt 0:05:52]} 10. O-O {[%emt 0:00:48]} Be4 {[%emt 0:03:34]} 11. Rc1 {[%emt 0:06:40]} Be7 {[%emt 0:08:32]} 12. Bc3 {[%emt 0:05:40]} ({White should play} 12. a4 $11) 12... b5 {[%emt 0:06:10]} 13. Nbd2 {[%emt 0:04:28]} Bg6 {[%emt 0:00:45]} 14. e4 {[%emt 0:13:15]} Nxc3 {[%emt 0:06:03]} 15. bxc3 {[%emt 0:00:47]} Ra4 {[%emt 0:02:54]} 16. Bf1 {[%emt 0:02:28]} Nf6 {[%emt 0:03:32]} 17. Bd3 {[%emt 0:04:16]} O-O {[%emt 0:05:02]} 18. Ne5 {[%emt 0:01:22]} Rfa8 {[%emt 0:00:14]} 19. Nxg6 {[%emt 0:02:30]} hxg6 {[%emt 0:00:05]} 20. Rc2 {[%emt 0:00:52]} Nd7 {[%emt 0:03:18]} 21. Nf3 {[%emt 0:06:02]} Ra3 {[%emt 0:01:14]} 22. Be2 {[%emt 0:00:59]} Nb6 {[%emt 0:02:06]} 23. Kg2 {[%emt 0:06:04]} Kf8 {[%emt 0:02:53]} 24. Ne5 {[%emt 0:02:48]} Bd6 {[%emt 0:00:42] [#] Hoping for ...Bxe5.} 25. f4 {[%emt 0:04:40]} (25. Nf3 $15) 25... Bxe5 {[%emt 0:02:33]} 26. fxe5 {[%emt 0:00:11]} Ke7 {[%emt 0:00:42]} 27. h4 {[%emt 0:01:52]} R8a4 {[%emt 0:05:59]} 28. Kh3 {[%emt 0:04:52]} (28. Kf2 $17) 28... Nc4 {[%emt 0:05:47]} (28... f6 $19 {has better winning chances. White must now prevent ...fxe5.} 29. exf6+ gxf6) 29. Bd3 {[%emt 0:02:18]} (29. Bxc4 $142 Rxc4 30. Rb1) 29... Ne3 {[%emt 0:08:11]} ({Better is} 29... f6 $17 30. exf6+ gxf6) 30. Re2 $11 {[%emt 0:01:09]} Nc4 {[%emt 0:01:51]} 31. Rf2 {[%emt 0:02:33] [#] Raf1 is the strong threat.} Ra8 {[%emt 0:02:26]} 32. Raf1 {[%emt 0:01:43] Weighted Error Value: White=0.19 (very precise) /Black=0.14 (very precise)} 1/2-1/2

[Event "Krakow Championship-A 2022"]
[Site "Krakow"]
[Date "2022.06.27"]
[Round "4.14"]
[White "Liu, Casper"]
[Black "Balaji Sekar"]
[Result "0-1"]
[ECO "A05"]
[WhiteElo "2218"]
[BlackElo "1189"]
[Annotator "RC"]
[PlyCount "100"]
[EventDate "2022.06.25"]
[EventType "swiss"]
[EventCountry "POL"]
[SourceTitle "playchess.com"]
[Source "ChessBase"]
[SourceQuality "1"]
[TimeControl "40/5400+30:1800+30"]

1. Nf3 {[%emt 0:00:07]} Nf6 {[%emt 0:00:08]} 2. g3 {[%emt 0:00:05]} d5 {[%emt 0:00:14]} 3. Bg2 {[%emt 0:00:06]} e6 {[%emt 0:03:13]} 4. O-O {[%emt 0:00:16]} c5 {[%emt 0:00:04]} 5. c4 {[%emt 0:00:14]} Nc6 {[%emt 0:00:57]} 6. d4 {[%emt 0:00:19]} dxc4 {[%emt 0:00:27]} 7. dxc5 {[%emt 0:00:05]} Qxd1 {[%emt 0:00:07]} 8. Rxd1 {[%emt 0:00:06]} Bxc5 {[%emt 0:00:05]} 9. Nbd2 {[%emt 0:00:07]} c3 {[%emt 0:00:05]} 10. bxc3 {[%emt 0:00:05]} O-O {[%emt 0:00:05]} 11. Nb3 {[%emt 0:00:05]} Be7 {[%emt 0:00:30]} 12. Nfd4 {[%emt 0:00:05]} Nxd4 13. cxd4 {[%emt 0:00:02]} Nd5 {[%emt 0:01:01]} 14. Bd2 {[%emt 0:00:01]} f5 {[%emt 0:00:44]} 15. Na5 {[%emt 0:00:04]} b6 {[%emt 0:03:52]} 16. Nc6 {[%emt 0:00:01]} Bf6 {[%emt 0:00:42]} 17. e3 {[%emt 0:00:01]} Bb7 {[%emt 0:00:30]} 18. Nb4 {[%emt 0:00:30]} Rfc8 {[%emt 0:00:30]} 19. a4 {[%emt 0:00:30]} Rab8 {[%emt 0:00:30]} 20. Nxd5 {[%emt 0:00:30]} Bxd5 {[%emt 0:00:30]} 21. Bxd5 {[%emt 0:00:30]} exd5 {[%emt 0:00:30]} 22. a5 {[%emt 0:00:30]} b5 {[%emt 0:00:30]} 23. a6 {[%emt 0:00:30]} Be7 {[%emt 0:00:30]} 24. Rdb1 {[%emt 0:00:30]} b4 {[%emt 0:00:30]} 25. Rb3 {[%emt 0:00:30]} Rc2 {[%emt 0:00:30]} 26. Be1 {[%emt 0:00:30]} Kf7 {[%emt 0:58:14]} 27. Rab1 {[%emt 1:11:54]} Rc6 {[%emt 0:02:42]} 28. Ra1 {[%emt 0:07:07]} Ke6 {[%emt 0:00:30]} 29. h4 {[%emt 0:00:19]} Rbb6 {[%emt 0:01:13]} 30. Rab1 {[%emt 0:00:29]} Rc4 {[%emt 0:00:10]} 31. Kg2 {[%emt 0:03:32]} Kd7 {[%emt 0:00:26]} 32. Kf3 {[%emt 0:01:23]} Bd6 {[%emt 0:00:25]} 33. g4 {[%emt 0:00:34]} fxg4+ {[%emt 0:00:06]} 34. Kxg4 {[%emt 0:00:03]} Kc6 {[%emt 0:00:17]} 35. Kf5 {[%emt 0:00:30]} Rb8 {[%emt 0:04:57]} 36. Kg4 {[%emt 0:03:17]} Kb5 {[%emt 0:00:23]} 37. Kf5 {[%emt 0:00:05]} Rf8+ {[%emt 0:00:22]} 38. Kg4 {[%emt 0:00:29]} Rf6 {[%emt 0:01:11]} 39. h5 {[%emt 0:00:31]} Be7 {[%emt 0:00:45]} 40. f4 {[%emt 0:01:09]} Rxa6 {[%emt 0:00:07]} 41. Kf5 {[%emt 0:33:14]} Rf6+ {[%emt 0:34:23]} 42. Ke5 {[%emt 0:00:24]} Kc6 {[%emt 0:00:06]} 43. Bxb4 {[%emt 0:01:16]} Rxb4 {[%emt 0:00:02]} 44. Rc1+ {[%emt 0:00:28]} Rc4 {[%emt 0:00:05]} 45. Rxc4+ {[%emt 0:00:31]} dxc4 {[%emt 0:00:01]} 46. Rc3 {[%emt 0:00:31]} Kb5 {[%emt 0:00:06]} 47. e4 {[%emt 0:00:41]} Bb4 {[%emt 0:00:22]} 48. Rc2 {[%emt 0:01:26]} c3 {[%emt 0:00:08]} 49. d5 {[%emt 0:01:07]} Kc4 {[%emt 0:00:05]} 50. Rg2 {[%emt 0:00:06]} Bd6# {[%emt 0:00:01]} 0-1

[Event "Krakow Championship-A 2022"]
[Site "Krakow"]
[Date "2022.06.27"]
[Round "4.15"]
[White "Gjestemoen-VonHirsch, Andre"]
[Black "Turcan, Richard"]
[Result "0-1"]
[ECO "A45"]
[WhiteElo "2236"]
[BlackElo "2278"]
[Annotator "TA"]
[PlyCount "50"]
[EventDate "2022.06.25"]
[EventType "swiss"]
[EventCountry "POL"]
[SourceTitle "playchess.com"]
[Source "ChessBase"]
[SourceQuality "1"]
[TimeControl "40/5400+30:1800+30"]

{[%evp 9,50,14,33,1,0,0,134,135,134,135,229,211,174,-52,-31,-20,39,47,45,56,83,80,87,0,270,265,259,-33,-43,-488,-488,-487,-477,-790,-778,-744,-539,-585,-520,-1837,-1831,-2067,-1817]} 1. d4 {[%emt 0:00:33]} Nf6 {[%emt 0:01:27]} 2. Bf4 {[%emt 0:00:13]} c5 {[%emt 0:01:49]} 3. e3 {[%emt 0:00:10]} Nd5 {[%emt 0:04:21]} 4. Bg3 {[%emt 0:00:58]} Qb6 {[%emt 0:00:19]} 5. c4 {[%emt 0:02:49]} Qxb2 {[%emt 0:03:18] [#] Strongly threatening ...Nb4.} 6. cxd5 {[%emt 0:00:20]} Qxa1 {[%emt 0:00:06]} 7. Qc2 {[%emt 0:00:33]} e6 {[%emt 0:05:11] [#]} (7... Na6 $11 {remains equal.} 8. Bxa6 bxa6) 8. Nf3 $1 $16 {[%emt 0:20:41] White is clearly better.} exd5 {[%emt 0:02:12] White must now prevent ...Nc6.} 9. Bb5 {[%emt 0:11:30]} c4 {[%emt 0:15:17]} (9... Nc6 $16) 10. O-O $18 {[%emt 0:00:18]} Bb4 {[%emt 0:00:17] Against Nc3} 11. Bxb8 $2 {[%emt 0:17:36]} (11. Qf5 Nc6 12. Qxd5 O-O $11) (11. a3 $18 Bxa3 12. Nc3) 11... Rxb8 $15 {[%emt 0:02:50]} 12. Qf5 {[%emt 0:01:05] Qe5+ is the strong threat.} O-O {[%emt 0:07:50]} ({Black should try} 12... f6 $1 $11 13. Qxd5 Qxa2 14. Bxc4 Qc2) 13. Ng5 $14 {[%emt 0:02:00][%csl Gg5][%cal Rf5h7]} g6 {[%emt 0:00:09]} 14. Qxd5 {[%emt 0:00:41][%cal Og5f7]} Qxa2 {[%emt 0:23:04] [#] Hoping for ...Qc2.} 15. Nxf7 $1 {[%emt 0:08:51]} Kg7 {[%emt 0:01:04]} (15... Rxf7 $2 16. Bxc4 Qxc4 17. Qxc4 $18) 16. Nd6 {[%emt 0:05:19][%mdl 1024] White has strong compensation.} ({Don't go for} 16. Bxc4 $2 Qa5 17. Bb5 Qb6 $19) 16... Qa5 $2 {[%emt 0:10:35][%mdl 8192]} (16... b6 $1 $11 {and Black has nothing to worry.}) 17. Qe5+ $18 {[%emt 0:01:58]} Kh6 {[%emt 0:00:07]} 18. h4 $2 {[%emt 0:13:54]} ({White should play} 18. f4 $18 {Rf3 would kill now.} Bxd6 19. Qxd6) 18... Qd8 $15 {[%emt 0:02:45]} 19. Nf7+ $2 {[%emt 0:03:27][%mdl 8192] This costs White the game.} Rxf7 $19 {[%emt 0:00:11] Black is clearly winning.} 20. Qxb8 {[%emt 0:00:02]} d5 {[%emt 0:03:46] Threatens to win with ...Bd6.} 21. Qxa7 {[%emt 0:03:00]} (21. Qg3 $142 a6 22. Ba4) 21... Qxh4 {[%emt 0:00:33]} 22. Qb8 {[%emt 0:00:39]} Bf5 {[%emt 0:03:52] And now ...Bd3 would win.} 23. f3 {[%emt 0:01:41]} Bd3 {[%emt 0:02:01] A strong pair of Bishops.} 24. Be8 {[%emt 0:01:42]} (24. Rd1 $142) 24... Rf6 {[%emt 0:00:54] aiming for ...Bd6.} 25. Rf2 {[%emt 0:02:09]} Bd6 {[%emt 0:00:24] Weighted Error Value: White=1.15/Black=0.50} 0-1

[Event "Krakow Championship-A 2022"]
[Site "Krakow"]
[Date "2022.06.27"]
[Round "4.16"]
[White "Kantorik, Marian"]
[Black "Pniaczek, Marek"]
[Result "0-1"]
[ECO "D20"]
[WhiteElo "2211"]
[BlackElo "2298"]
[Annotator "TA"]
[PlyCount "74"]
[EventDate "2022.06.25"]
[EventType "swiss"]
[EventCountry "POL"]
[SourceTitle "playchess.com"]
[Source "ChessBase"]
[SourceQuality "1"]
[TimeControl "40/5400+30:1800+30"]

{[%evp 10,74,14,4,16,-14,-12,-10,-15,-28,-11,-39,0,-4,0,-4,56,16,19,10,10,0,0,0,0,0,0,0,0,0,0,-11,46,-74,-18,-52,-70,-81,-17,-66,-88,-84,-66,-65,-65,-107,-107,-117,-104,-108,-101,-292,-273,-280,-280,-280,-268,-291,-275,-289,-285,-323,-329,-483,-454,-613,-600]} 1. d4 {[%emt 0:00:06]} d5 {[%emt 0:00:05]} 2. c4 {[%emt 0:00:13]} dxc4 {[%emt 0:00:05]} 3. e3 {[%emt 0:01:17]} Nf6 {[%emt 0:01:20]} 4. Bxc4 {[%emt 0:01:42]} e6 {[%emt 0:03:56]} 5. Nc3 {[%emt 0:01:46]} a6 {[%emt 0:01:20]} 6. a4 {[%emt 0:04:05]} b6 {[%emt 0:04:21]} 7. Be2 {[%emt 0:05:54]} Bb7 {[%emt 0:05:33]} 8. Bf3 {[%emt 0:00:51]} Qc8 {[%emt 0:01:20] The position is equal.} 9. Bxb7 {[%emt 0:03:21]} Qxb7 {[%emt 0:00:03]} 10. Nf3 {[%emt 0:00:13]} Nbd7 {[%emt 0:01:49]} 11. O-O {[%emt 0:01:48]} Bd6 {[%emt 0:04:36]} 12. Qc2 {[%emt 0:11:59]} e5 {[%emt 0:12:48]} (12... c5 $11) 13. dxe5 {[%emt 0:08:40]} (13. e4 {keeps more tension.} O-O 14. Bg5 exd4 15. Nxd4 Rfe8 16. f3) 13... Nxe5 {[%emt 0:00:05]} 14. Nxe5 {[%emt 0:00:37]} Bxe5 {[%emt 0:00:05]} 15. Qf5 {[%emt 0:00:18]} Bxc3 {[%emt 0:01:15]} 16. bxc3 {[%emt 0:00:07]} Qe4 {[%emt 0:04:04] Prevents Qe5+.} 17. Qg5 {[%emt 0:21:11]} O-O {[%emt 0:04:18]} 18. c4 {[%emt 0:03:15]} Qxc4 {[%emt 0:15:50]} 19. Bb2 {[%emt 0:00:18]} Qe6 {[%emt 0:00:32]} 20. Rac1 {[%emt 0:01:40]} Ne8 {[%emt 0:05:18] [#]} (20... h6 $11 21. Qh4 Ne8) 21. Qg3 {[%emt 0:04:48]} (21. Rxc7 $1 $14 {keeps the upper hand.} f6 22. Re7 $1) 21... f6 {[%emt 0:00:52]} ({Black should try} 21... Qa2 $17 22. Ba1 f6) 22. Rfd1 {[%emt 0:08:08]} Qb3 {[%emt 0:08:07]} 23. Qf3 {[%emt 0:00:59]} Rc8 {[%emt 0:00:58]} ({Black should play} 23... Rb8 $17 24. Qd5+ Qxd5 25. Rxd5 c5) 24. Qd5+ {[%emt 0:06:30]} (24. Rd2 $11) 24... Qxd5 $15 {[%emt 0:00:06]} 25. Rxd5 {[%emt 0:00:04]} Nd6 {[%emt 0:07:01]} 26. Ba3 {[%emt 0:03:32]} Rfd8 $36 {[%emt 0:02:00][%cal Od6c4][%mdl 2048] ...Nc4! is the strong threat. Black fights for an advantage.} 27. Kf1 {[%emt 0:03:47]} Nb7 {[%emt 0:01:31]} 28. Rxd8+ {[%emt 0:00:24]} Nxd8 $17 {[%emt 0:00:09][%mdl 4096] Endgame KRB-KRN} 29. a5 {[%emt 0:00:03] [#]} b5 {[%emt 0:00:50] aiming for ...c6.} ({Much worse is} 29... bxa5 30. Rc5 $15) 30. Bd6 $2 {[%emt 0:03:55] This move loses the game for White.} (30. Be7 $17) 30... c6 {[%emt 0:00:47][%cal Bc7c6,Bc6c5,Bc5c4][%mdl 32]} 31. Bc5 {[%emt 0:00:24]} Nb7 {[%emt 0:00:57]} 32. Bb6 {[%emt 0:00:05]} Kf7 {[%emt 0:00:20]} 33. Ke2 {[%emt 0:01:59]} Ke6 {[%emt 0:01:56]} 34. Kd3 {[%emt 0:01:00]} c5 {[%emt 0:02:02]} 35. g4 {[%emt 0:01:17]} c4+ {[%emt 0:00:38]} 36. Ke4 {[%emt 0:01:38]} (36. Kc2 {keeps fighting.}) 36... Nc5+ $19 {[%emt 0:00:38]} 37. Kf3 {[%emt 0:00:35]} Nd3 {[%emt 0:00:33] Weighted Error Value: White=0.36/Black=0.18 (very precise)} 0-1